fUST/lending_fUST_20250708
["ID","MTS","AMOUNT","RATE_DAILY","PERIOD"]
[370240854,1751921443259,-460.0,0.00019452,2]
[370240856,1751921443267,-460.0,0.00019452,2]
[370240858,1751921443276,-419.68937188,0.00019452,2]
[370240860,1751921443285,-460.0,0.00019452,2]
[370240862,1751921443295,-427.27068182,0.00019452,2]
[370240864,1751921443306,-460.0,0.00019452,2]
[370240866,1751921443315,-460.0,0.00019452,2]
[370240868,1751921443324,-460.0,0.00019452,2]
[370240871,1751921443333,-460.0,0.00019452,2]
[370240873,1751921443343,-460.0,0.00019452,2]
[370240875,1751921443352,-460.0,0.00019452,2]
[370240877,1751921443361,-460.0,0.00019452,2]
[370240879,1751921443370,-460.0,0.00019452,2]
[370240881,1751921443379,-460.0,0.00019452,2]
[370240883,1751921443389,-460.0,0.00019452,2]
[370240885,1751921443398,-460.0,0.00019452,2]
[370240887,1751921443409,-460.0,0.00019452,2]
[370240888,1751921443418,-460.0,0.00019452,2]
[370240890,1751921443427,-460.0,0.00019452,2]
[370240893,1751921443437,-460.0,0.00019452,2]
[370240895,1751921443446,-460.0,0.00019452,2]
[370240897,1751921443456,-460.0,0.00019452,2]
[370240899,1751921443465,-460.0,0.00019452,2]
[370240900,1751921443475,-1492.88,0.00019452,2]
[370240903,1751921443484,-467.37268522,0.00019452,2]
[370240904,1751921443493,-460.0,0.00019452,2]
[370240906,1751921443502,-460.0,0.00019452,2]
[370240908,1751921443511,-460.0,0.00019452,2]
[370240911,1751921443521,-460.0,0.00019452,2]
[370240913,1751921443530,-460.0,0.00019452,2]
[370240915,1751921443539,-460.0,0.00019452,2]
[370240917,1751921443548,-2345.96,0.00019452,2]
[370240919,1751921443557,-460.0,0.00019452,2]
[370240921,1751921443566,-460.0,0.00019452,2]
[370240923,1751921443576,-460.0,0.00019452,2]
[370240925,1751921443585,-460.0,0.00019452,2]
[370240927,1751921443594,-3578.61,0.00019452,2]
[370240929,1751921443603,-460.0,0.00019452,2]
[370240931,1751921443612,-460.0,0.00019452,2]
[370240933,1751921443620,-460.0,0.00019452,2]
[370240935,1751921443629,-460.0,0.00019452,2]
[370240936,1751921443638,-460.0,0.00019452,2]
[370240938,1751921443647,-460.0,0.00019452,2]
[370240940,1751921443658,-460.0,0.00019452,2]
[370240942,1751921443671,-460.0,0.00019452,2]
[370240944,1751921443680,-1615.42,0.00019452,2]
[370240946,1751921443690,-460.0,0.00019452,2]
[370240948,1751921443699,-936.72,0.00019452,2]
[370240950,1751921443710,-460.0,0.00019452,2]
[370240952,1751921443720,-3630.9,0.00019452,2]
[370240955,1751921443729,-460.0,0.00019452,2]
[370240957,1751921443738,-462.67988669,0.00019452,2]
[370240958,1751921443749,-460.0,0.00019452,2]
[370240960,1751921443759,-794.66,0.00019452,2]
[370240963,1751921443768,-460.0,0.00019452,2]
[370240965,1751921443777,-231.44483195,0.00019452,2]
[370240967,1751921443787,-465.79499489,0.00019452,2]
[370240969,1751921443796,-460.0,0.00019452,2]
[370240970,1751921443805,-647.5,0.00019452,2]
[370240972,1751921443816,-460.0,0.00019452,2]
[370240974,1751921443825,-552.8,0.00019452,2]
[370240988,1751921443943,-460.0,0.00019452,2]
[370240990,1751921443952,-460.0,0.00019452,2]
[370240992,1751921443962,-2132.19,0.00019452,2]
[370240994,1751921443971,-460.0,0.00019452,2]
[370240996,1751921443980,-551.4,0.00019452,2]
[370240999,1751921443990,-815.63,0.00019452,2]
[370241001,1751921443999,-460.0,0.00019452,2]
[370241003,1751921444008,-460.0,0.00019452,2]
[370241004,1751921444017,-669.44,0.00019452,2]
[370241006,1751921444026,-460.0,0.00019452,2]
[370241008,1751921444035,-1413.77,0.00019452,2]
[370241010,1751921444044,-460.0,0.00019452,2]
[370241012,1751921444053,-460.0,0.00019452,2]
[370241014,1751921444062,-460.0,0.00019452,2]
[370241016,1751921444072,-460.0,0.00019452,2]
[370241018,1751921444081,-460.0,0.00019452,2]
[370241020,1751921444090,-463.27550058,0.00019452,2]
[370241023,1751921444099,-460.0,0.00019452,2]
[370241024,1751921444108,-1497.44,0.00019452,2]
[370241026,1751921444117,-460.0,0.00019452,2]
[370241028,1751921444125,-460.0,0.00019452,2]
[370241030,1751921444135,-1545.08,0.00019452,2]
[370241032,1751921444144,-460.0,0.00019452,2]
[370241035,1751921444154,-460.0,0.00019452,2]
[370241037,1751921444162,-1183.15,0.00019452,2]
[370241039,1751921444171,-460.0,0.00019452,2]
[370241041,1751921444180,-460.0,0.00019452,2]
[370241043,1751921444189,-460.0,0.00019452,2]
[370241044,1751921444199,-460.0,0.00019452,2]
[370241046,1751921444208,-460.0,0.00019452,2]
[370241049,1751921444219,-460.0,0.00019452,2]
[370241051,1751921444228,-460.0,0.00019452,2]
[370241052,1751921444238,-460.0,0.00019452,2]
[370241055,1751921444248,-636.51,0.00019452,2]
[370241057,1751921444259,-765.59,0.00019452,2]
[370241058,1751921444268,-460.0,0.00019452,2]
[370241060,1751921444278,-1657.21,0.00019452,2]
[370241063,1751921444287,-339.75006237,0.00019452,2]
[370241065,1751921444296,-460.0,0.00019452,2]
[370241067,1751921444305,-1461.23,0.00019452,2]
[370241069,1751921444315,-460.0,0.00019452,2]
[370241071,1751921444324,-460.0,0.00019452,2]
[370241073,1751921444333,-460.0,0.00019452,2]
[370241075,1751921444342,-460.0,0.00019452,2]
[370241077,1751921444351,-313.98,0.00019452,2]
[370241079,1751921444360,-460.0,0.00019452,2]
[370241081,1751921444369,-463.64,0.00019452,2]
[370241083,1751921444379,-460.0,0.00019452,2]
[370241084,1751921444390,-460.0,0.00019452,2]
[370241087,1751921444400,-460.0,0.00019452,2]
[370241088,1751921444409,-460.0,0.00019452,2]
[370241090,1751921444419,-460.0,0.00019452,2]
[370241092,1751921444428,-460.0,0.00019452,2]
[370241094,1751921444437,-460.0,0.00019452,2]
[370241097,1751921444447,-460.0,0.00019452,2]
[370241099,1751921444457,-460.0,0.00019452,2]
[370241100,1751921444467,-2241.64,0.00019452,2]
[370241102,1751921444475,-460.0,0.00019452,2]
[370241104,1751921444485,-460.0,0.00019452,2]
[370241106,1751921444494,-460.0,0.00019452,2]
[370241109,1751921444506,-460.0,0.00019452,2]
[370241110,1751921444517,-501.21549238,0.00019452,2]
[370241112,1751921444527,-470.42,0.00019452,2]
[370241114,1751921444537,-545.88,0.00019452,2]
[370241115,1751921444546,-460.0,0.00019452,2]
[370241116,1751921444554,-460.0,0.00019452,2]
[370241117,1751921444563,-2743.41,0.00019452,2]
[370241118,1751921444572,-460.0,0.00019452,2]
[370241119,1751921444581,-460.0,0.00019452,2]
[370241120,1751921444590,-460.0,0.00019452,2]
[370241121,1751921444599,-2082.34,0.00019452,2]
[370241122,1751921444608,-460.0,0.00019452,2]
[370241123,1751921444616,-460.0,0.00019452,2]
[370241124,1751921444625,-460.0,0.00019452,2]
[370241125,1751921444634,-460.0,0.00019452,2]
[370241126,1751921444643,-414.26440547,0.00019452,2]
[370241127,1751921444653,-460.0,0.00019452,2]
[370241129,1751921444663,-443.0,0.00019479,2]
[370241131,1751921444675,-443.0,0.00019507,2]
[370241133,1751921444684,-443.0,0.00019534,2]
[370241135,1751921444693,-443.0,0.00019562,2]
[370241137,1751921444702,-443.0,0.00019589,2]
[370241139,1751921444711,-443.0,0.00019616,2]
[370241141,1751921444720,-443.0,0.00019644,2]
[370241142,1751921444730,-443.0,0.00019671,2]
[370241144,1751921444739,-443.0,0.00019699,2]
[370241146,1751921444748,-1000.0,0.00019721,2]
[370241148,1751921444757,-1000.0,0.00019721,2]
[370241150,1751921444766,-443.0,0.00019726,2]
[370241153,1751921444775,-460.0,0.00019726,2]
[370241155,1751921444785,-460.0,0.00019726,2]
[370241157,1751921444795,-460.0,0.00019726,2]
[370241159,1751921444804,-460.0,0.00019726,2]
[370241161,1751921444813,-460.0,0.00019726,2]
[370241163,1751921444823,-460.0,0.00019726,2]
[370241165,1751921444832,-460.0,0.00019726,2]
[370241167,1751921444841,-484.80836324,0.00019726,2]
[370241169,1751921444851,-460.0,0.00019726,2]
[370241170,1751921444860,-460.0,0.00019726,2]
[370241172,1751921444869,-460.0,0.00019726,2]
[370241175,1751921444878,-460.0,0.00019726,2]
[370241177,1751921444888,-460.0,0.00019726,2]
[370241178,1751921444897,-460.0,0.00019726,2]
[370241181,1751921444907,-460.0,0.00019726,2]
[370241183,1751921444921,-409.32247708,0.00019726,2]
[370241186,1751921444937,-460.0,0.00019726,2]
[370241188,1751921444952,-460.0,0.00019726,2]
[370241191,1751921444964,-460.0,0.00019726,2]
[370241193,1751921444976,-460.0,0.00019726,2]
[370241195,1751921444989,-460.0,0.00019726,2]
[370241198,1751921445002,-460.0,0.00019726,2]
[370241200,1751921445016,-397.30654642,0.00019726,2]
[370241203,1751921445029,-460.0,0.00019726,2]
[370241205,1751921445043,-460.0,0.00019726,2]
[370241208,1751921445058,-485.42,0.00019726,2]
[370241210,1751921445071,-460.0,0.00019726,2]
[370241212,1751921445083,-460.0,0.00019726,2]
[370241215,1751921445097,-460.0,0.00019726,2]
[370241217,1751921445109,-460.0,0.00019726,2]
[370241219,1751921445122,-460.0,0.00019726,2]
[370241222,1751921445135,-460.0,0.00019726,2]
[370241224,1751921445147,-460.0,0.00019726,2]
[370241226,1751921445158,-460.0,0.00019726,2]
[370241229,1751921445169,-460.0,0.00019726,2]
[370241232,1751921445181,-460.0,0.00019726,2]
[370241234,1751921445194,-460.0,0.00019726,2]
[370241237,1751921445207,-411.16215158,0.00019726,2]
[370241239,1751921445219,-460.0,0.00019726,2]
[370241242,1751921445235,-460.0,0.00019726,2]
[370241244,1751921445248,-460.0,0.00019726,2]
[370241247,1751921445263,-460.0,0.00019726,2]
[370241249,1751921445274,-460.0,0.00019726,2]
[370241251,1751921445285,-460.0,0.00019726,2]
[370241253,1751921445295,-460.0,0.00019726,2]
[370241256,1751921445308,-460.0,0.00019726,2]
[370241258,1751921445321,-460.0,0.00019726,2]
[370241261,1751921445335,-460.0,0.00019726,2]
[370241263,1751921445345,-460.0,0.00019726,2]
[370241265,1751921445357,-460.0,0.00019726,2]
[370241267,1751921445369,-373.06834388,0.00019726,2]
[370241270,1751921445382,-464.52565378,0.00019726,2]
[370241272,1751921445393,-462.24701882,0.00019726,2]
[370241274,1751921445405,-462.68941188,0.00019726,2]
[370241276,1751921445416,-460.0,0.00019726,2]
[370241279,1751921445428,-460.0,0.00019726,2]
[370241281,1751921445440,-460.0,0.00019726,2]
[370241283,1751921445451,-460.0,0.00019726,2]
[370241285,1751921445463,-460.0,0.00019726,2]
[370241288,1751921445476,-229.05,0.00019726,2]
[370241290,1751921445489,-460.0,0.00019726,2]
[370241292,1751921445501,-460.0,0.00019726,2]
[370241294,1751921445513,-460.0,0.00019726,2]
[370241297,1751921445525,-460.0,0.00019726,2]
[370241299,1751921445537,-1492.88,0.00019726,2]
[370241301,1751921445549,-460.0,0.00019726,2]
[370241303,1751921445561,-460.0,0.00019726,2]
[370241306,1751921445573,-460.0,0.00019726,2]
[370241308,1751921445586,-2345.96,0.00019726,2]
[370241310,1751921445597,-460.0,0.00019726,2]
[370241312,1751921445609,-460.0,0.00019726,2]
[370241315,1751921445621,-3578.61,0.00019726,2]
[370241317,1751921445632,-577.04091537,0.00019726,2]
[370241319,1751921445647,-495.72651481,0.00019726,2]
[370241321,1751921445664,-460.0,0.00019726,2]
[370241324,1751921445678,-460.0,0.00019726,2]
[370241326,1751921445689,-460.0,0.00019726,2]
[370241328,1751921445700,-460.0,0.00019726,2]
[370241330,1751921445718,-1615.42,0.00019726,2]
[370241333,1751921445730,-460.0,0.00019726,2]
[370241335,1751921445742,-936.72,0.00019726,2]
[370241337,1751921445753,-460.0,0.00019726,2]
[370241339,1751921445764,-3630.9,0.00019726,2]
[370241342,1751921445776,-460.0,0.00019726,2]
[370241344,1751921445787,-460.0,0.00019726,2]
[370241346,1751921445799,-794.66,0.00019726,2]
[370241348,1751921445810,-460.0,0.00019726,2]
[370241351,1751921445822,-460.0,0.00019726,2]
[370241353,1751921445834,-647.5,0.00019726,2]
[370241355,1751921445845,-506.90103555,0.00019726,2]
[370241357,1751921445857,-552.8,0.00019726,2]
[370241360,1751921445869,-460.0,0.00019726,2]
[370241362,1751921445880,-460.0,0.00019726,2]
[370241364,1751921445892,-2132.19,0.00019726,2]
[370241366,1751921445903,-815.63,0.00019726,2]
[370241369,1751921445915,-460.0,0.00019726,2]
[370241371,1751921445927,-460.0,0.00019726,2]
[370241373,1751921445938,-669.44,0.00019726,2]
[370241375,1751921445949,-460.0,0.00019726,2]
[370241377,1751921445961,-1413.77,0.00019726,2]
[370241380,1751921445973,-460.0,0.00019726,2]
[370241382,1751921445984,-460.0,0.00019726,2]
[370241384,1751921445996,-460.0,0.00019726,2]
[370241386,1751921446007,-460.0,0.00019726,2]
[370241389,1751921446019,-460.0,0.00019726,2]
[370241391,1751921446031,-1497.44,0.00019726,2]
[370241393,1751921446042,-460.0,0.00019726,2]
[370241396,1751921446054,-460.0,0.00019726,2]
[370241398,1751921446067,-1545.08,0.00019726,2]
[370241400,1751921446078,-460.0,0.00019726,2]
[370241402,1751921446089,-1183.15,0.00019726,2]
[370241405,1751921446099,-460.0,0.00019726,2]
[370241406,1751921446108,-460.0,0.00019726,2]
[370241409,1751921446117,-460.0,0.00019726,2]
[370241411,1751921446127,-460.0,0.00019726,2]
[370241413,1751921446136,-460.0,0.00019726,2]
[370241434,1751921446326,-460.0,0.00019726,2]
[370241437,1751921446337,-460.0,0.00019726,2]
[370241439,1751921446347,-765.59,0.00019726,2]
[370241441,1751921446356,-636.51,0.00019726,2]
[370241443,1751921446365,-460.0,0.00019726,2]
[370241445,1751921446374,-1657.21,0.00019726,2]
[370241447,1751921446383,-460.0,0.00019726,2]
[370241449,1751921446393,-1461.23,0.00019726,2]
[370241451,1751921446403,-460.0,0.00019726,2]
[370241453,1751921446412,-460.0,0.00019726,2]
[370241455,1751921446422,-460.0,0.00019726,2]
[370241457,1751921446432,-460.0,0.00019726,2]
[370241459,1751921446441,-460.0,0.00019726,2]
[370241460,1751921446450,-463.64,0.00019726,2]
[370241462,1751921446459,-460.0,0.00019726,2]
[370241464,1751921446468,-460.0,0.00019726,2]
[370241467,1751921446478,-460.0,0.00019726,2]
[370241469,1751921446488,-506.48685554,0.00019726,2]
[370241470,1751921446498,-460.0,0.00019726,2]
[370241472,1751921446507,-460.0,0.00019726,2]
[370241475,1751921446517,-460.0,0.00019726,2]
[370241477,1751921446526,-466.13599517,0.00019726,2]
[370241479,1751921446535,-2241.64,0.00019726,2]
[370241481,1751921446545,-460.0,0.00019726,2]
[370241482,1751921446554,-460.0,0.00019726,2]
[370241485,1751921446564,-460.0,0.00019726,2]
[370241486,1751921446574,-460.0,0.00019726,2]
[370241488,1751921446584,-470.42,0.00019726,2]
[370241490,1751921446594,-545.88,0.00019726,2]
[370241492,1751921446604,-2743.41,0.00019726,2]
[370241494,1751921446614,-460.0,0.00019726,2]
[370241497,1751921446625,-460.0,0.00019726,2]
[370241498,1751921446635,-460.0,0.00019726,2]
[370241501,1751921446646,-2082.34,0.00019726,2]
[370241503,1751921446656,-460.0,0.00019726,2]
[370241504,1751921446668,-460.0,0.00019726,2]
[370241505,1751921446678,-460.0,0.00019726,2]
[370241506,1751921446687,-460.0,0.00019726,2]
[370241507,1751921446696,-443.0,0.00019753,2]
[370241508,1751921446707,-500.0,0.00019774,2]
[370241509,1751921446716,-500.0,0.00019774,2]
[370241510,1751921446725,-503.24918739,0.00019774,2]
[370241511,1751921446734,-500.0,0.00019774,2]
[370241512,1751921446743,-443.0,0.00019781,2]
[370241513,1751921446752,-457.62313157,0.00019808,2]
[370241514,1751921446761,-1482.3373392,0.00019934,2]
[370241515,1751921446771,-1412.23878396,0.00019968,2]
[370241516,1751921446779,-150.0,0.00019972,2]
[370241517,1751921446788,-308.83950005,0.0002,2]
[370241519,1751921446798,-460.0,0.0002,2]
[370241521,1751921446806,-460.0,0.0002,2]
[370241523,1751921446815,-460.0,0.0002,2]
[370241525,1751921446825,-460.0,0.0002,2]
[370241527,1751921446834,-463.58825248,0.0002,2]
[370241529,1751921446843,-605.34475596,0.0002,2]
[370241531,1751921446852,-460.0,0.0002,2]
[370241533,1751921446861,-460.0,0.0002,2]
[370241535,1751921446871,-460.0,0.0002,2]
[370241537,1751921446880,-460.0,0.0002,2]
[370241539,1751921446889,-460.0,0.0002,2]
[370241541,1751921446899,-460.0,0.0002,2]
[370241543,1751921446908,-460.0,0.0002,2]
[370241545,1751921446917,-196.64503161,0.0002,2]
[370241547,1751921446927,-460.0,0.0002,2]
[370241549,1751921446937,-460.0,0.0002,2]
[370241551,1751921446946,-460.0,0.0002,2]
[370241553,1751921446956,-460.0,0.0002,2]
[370241555,1751921446966,-460.0,0.0002,2]
[370241557,1751921446975,-460.0,0.0002,2]
[370241559,1751921446984,-460.0,0.0002,2]
[370241561,1751921446993,-460.0,0.0002,2]
[370241563,1751921447002,-460.0,0.0002,2]
[370241565,1751921447011,-458.48144023,0.0002,2]
[370241567,1751921447021,-460.0,0.0002,2]
[370241569,1751921447030,-460.0,0.0002,2]
[370241571,1751921447039,-460.0,0.0002,2]
[370241573,1751921447048,-460.0,0.0002,2]
[370241575,1751921447059,-460.0,0.0002,2]
[370241577,1751921447068,-460.0,0.0002,2]
[370241579,1751921447078,-460.0,0.0002,2]
[370241581,1751921447087,-460.0,0.0002,2]
[370241583,1751921447097,-460.0,0.0002,2]
[370241585,1751921447107,-460.0,0.0002,2]
[370241587,1751921447116,-460.0,0.0002,2]
[370241589,1751921447126,-460.0,0.0002,2]
[370241591,1751921447136,-460.0,0.0002,2]
[370241593,1751921447146,-230.322291,0.0002,2]
[370241595,1751921447157,-460.0,0.0002,2]
[370241597,1751921447166,-460.0,0.0002,2]
[370241599,1751921447176,-230.322291,0.0002,2]
[370241601,1751921447186,-460.0,0.0002,2]
[370241603,1751921447195,-1492.88,0.0002,2]
[370241605,1751921447204,-460.0,0.0002,2]
[370241607,1751921447213,-460.0,0.0002,2]
[370241609,1751921447222,-460.0,0.0002,2]
[370241611,1751921447231,-2345.96,0.0002,2]
[370241613,1751921447240,-460.0,0.0002,2]
[370241615,1751921447249,-460.0,0.0002,2]
[370241617,1751921447258,-3578.61,0.0002,2]
[370241619,1751921447267,-361.59,0.0002,2]
[370241621,1751921447276,-460.0,0.0002,2]
[370241623,1751921447285,-460.0,0.0002,2]
[370241625,1751921447294,-460.0,0.0002,2]
[370241627,1751921447303,-1615.42,0.0002,2]
[370241629,1751921447312,-460.0,0.0002,2]
[370241631,1751921447322,-936.72,0.0002,2]
[370241633,1751921447331,-460.0,0.0002,2]
[370241635,1751921447340,-151.0,0.0002,2]
[370241637,1751921447349,-3630.9,0.0002,2]
[370241639,1751921447358,-460.0,0.0002,2]
[370241641,1751921447367,-460.0,0.0002,2]
[370241643,1751921447376,-794.66,0.0002,2]
[370241645,1751921447385,-460.0,0.0002,2]
[370241647,1751921447394,-460.0,0.0002,2]
[370241649,1751921447403,-151.0,0.0002,2]
[370241651,1751921447412,-647.5,0.0002,2]
[370241653,1751921447422,-151.0,0.0002,2]
[370241655,1751921447431,-552.8,0.0002,2]
[370241657,1751921447439,-460.0,0.0002,2]
[370241659,1751921447449,-460.0,0.0002,2]
[370241661,1751921447458,-2132.19,0.0002,2]
[370241663,1751921447467,-815.63,0.0002,2]
[370241665,1751921447475,-460.0,0.0002,2]
[370241667,1751921447484,-460.0,0.0002,2]
[370241669,1751921447494,-188.545295,0.0002,2]
[370241671,1751921447503,-669.44,0.0002,2]
[370241673,1751921447512,-460.0,0.0002,2]
[370241675,1751921447521,-188.545295,0.0002,2]
[370241677,1751921447530,-1413.77,0.0002,2]
[370241679,1751921447539,-246.5008855,0.0002,2]
[370241681,1751921447549,-460.0,0.0002,2]
[370241683,1751921447558,-460.0,0.0002,2]
[370241685,1751921447568,-460.0,0.0002,2]
[370241687,1751921447578,-460.0,0.0002,2]
[370241689,1751921447587,-1497.44,0.0002,2]
[370241691,1751921447597,-460.0,0.0002,2]
[370241693,1751921447606,-460.0,0.0002,2]
[370241695,1751921447615,-1545.08,0.0002,2]
[370241697,1751921447624,-460.0,0.0002,2]
[370241699,1751921447633,-1183.15,0.0002,2]
[370241701,1751921447642,-460.0,0.0002,2]
[370241703,1751921447651,-460.0,0.0002,2]
[370241705,1751921447661,-460.0,0.0002,2]
[370241707,1751921447671,-460.0,0.0002,2]
[370241709,1751921447682,-460.0,0.0002,2]
[370241711,1751921447691,-460.0,0.0002,2]
[370241713,1751921447701,-460.0,0.0002,2]
[370241715,1751921447711,-765.59,0.0002,2]
[370241717,1751921447720,-636.51,0.0002,2]
[370241719,1751921447729,-460.0,0.0002,2]
[370241721,1751921447740,-1657.21,0.0002,2]
[370241723,1751921447750,-1461.23,0.0002,2]
[370241725,1751921447759,-460.0,0.0002,2]
[370241727,1751921447769,-460.0,0.0002,2]
[370241729,1751921447778,-460.0,0.0002,2]
[370241731,1751921447787,-460.0,0.0002,2]
[370241733,1751921447797,-535.01,0.0002,2]
[370241735,1751921447806,-463.64,0.0002,2]
[370241737,1751921447816,-460.0,0.0002,2]
[370241740,1751921447826,-460.0,0.0002,2]
[370241742,1751921447836,-460.0,0.0002,2]
[370241744,1751921447846,-151.0,0.0002,2]
[370241746,1751921447855,-460.0,0.0002,2]
[370241748,1751921447865,-460.0,0.0002,2]
[370241750,1751921447875,-151.0,0.0002,2]
[370241752,1751921447885,-2241.64,0.0002,2]
[370241754,1751921447894,-460.0,0.0002,2]
[370241756,1751921447903,-460.0,0.0002,2]
[370241758,1751921447912,-460.0,0.0002,2]
[370241760,1751921447922,-470.42,0.0002,2]
[370241762,1751921447932,-545.88,0.0002,2]
[370241764,1751921447941,-2743.41,0.0002,2]
[370241766,1751921447951,-460.0,0.0002,2]
[370241768,1751921447960,-460.0,0.0002,2]
[370241770,1751921447970,-460.0,0.0002,2]
[370241772,1751921447979,-2082.34,0.0002,2]
[370241774,1751921447988,-460.0,0.0002,2]
[370241776,1751921447998,-460.0,0.0002,2]
[370241778,1751921448007,-460.0,0.0002,2]
[370241780,1751921448017,-460.0,0.0002,2]
[370241782,1751921448027,-160.0,0.00020071,2]
[370241784,1751921448037,-214.06929976,0.00020096,2]
[370241786,1751921448047,-230.48668418,0.00020096,2]
[370241788,1751921448056,-848.27993403,0.00020096,2]
[370241790,1751921448066,-160.0,0.00020096,2]
[370241792,1751921448076,-12584.46609586,0.00020096,2]
[370241794,1751921448085,-837.79946008,0.00020096,2]
[370241796,1751921448095,-215.21338352,0.00020096,2]
[370241798,1751921448105,-160.0,0.00020096,2]
[370241800,1751921448114,-160.0,0.00020098,2]
[370241802,1751921448124,-151.0,0.00020107,2]
[370241804,1751921448133,-151.0,0.00020107,2]
[370241806,1751921448143,-151.0,0.00020107,2]
[370241808,1751921448152,-151.0,0.00020153,2]
[370241810,1751921448163,-151.0,0.00020153,2]
[370241812,1751921448172,-151.0,0.00020153,2]
[370241814,1751921448182,-151.0,0.00020153,2]
[370241816,1751921448191,-151.0,0.00020153,2]
[370241819,1751921448200,-151.0,0.00020153,2]
[370241821,1751921448210,-151.0,0.00020153,2]
[370241822,1751921448219,-151.0,0.00020153,2]
[370241825,1751921448229,-151.0,0.00020153,2]
[370241827,1751921448239,-151.293224,0.00020153,2]
[370241829,1751921448248,-151.0,0.00020153,2]
[370241831,1751921448257,-151.0,0.00020153,2]
[370241833,1751921448266,-151.0,0.00020153,2]
[370241834,1751921448275,-151.0,0.00020153,2]
[370241836,1751921448284,-611.439066,0.00020153,2]
[370241838,1751921448293,-611.439066,0.00020153,2]
[370241840,1751921448303,-151.0,0.00020153,2]
[370241843,1751921448312,-151.0,0.00020153,2]
[370241844,1751921448322,-166.7492845,0.00020219,2]
[370241847,1751921448331,-153.0,0.00020219,2]
[370241848,1751921448341,-159.4922776,0.00020219,2]
[370241851,1751921448351,-177.763542,0.00020219,2]
[370241853,1751921448360,-153.0,0.00020219,2]
[370241854,1751921448369,-576.0368563,0.00020219,2]
[370241856,1751921448378,-153.0,0.00020219,2]
[370241859,1751921448389,-159.4922776,0.00020219,2]
[370241861,1751921448399,-177.763542,0.00020219,2]
[370241863,1751921448410,-576.0368563,0.00020219,2]
[370241865,1751921448419,-153.0,0.00020219,2]
[370241867,1751921448428,-153.0,0.00020219,2]
[370241869,1751921448437,-177.763542,0.00020219,2]
[370241871,1751921448447,-159.4922776,0.00020219,2]
[370241873,1751921448456,-576.0368563,0.00020219,2]
[370241875,1751921448465,-159.4922776,0.00020219,2]
[370241877,1751921448475,-177.763542,0.00020219,2]
[370241879,1751921448485,-153.0,0.00020219,2]
[370241881,1751921448494,-1152.0737126,0.00020219,2]
[370241883,1751921448504,-153.0,0.00020219,2]
[370241885,1751921448513,-177.7370323,0.00020247,2]
[370241887,1751921448523,-300.9816785,0.00020247,2]
[370241889,1751921448532,-1500.0,0.00020268,2]